fUSD/lending_fUSD_20250412
["ID","MTS","AMOUNT","RATE_DAILY","PERIOD"]
[357741681,1744416302122,-168.04109296,0.00019,2]
[357741682,1744416374783,-81.95890704,0.00019,2]
[357741683,1744416374806,-68.04109296,0.00019645,2]
[357741684,1744416430131,-182.24834368,0.000195,7]
[357741685,1744416493916,-235.502171,0.00019402,2]
[357741707,1744416632203,-317.75165632,0.000195,7]
[357741709,1744416632212,-763.80890437,0.000196,7]
[357741711,1744416632224,-336.19109563,0.000196,7]
[357741713,1744416632233,-92.48425704,0.00019645,2]
[357741715,1744416632242,-23.09292981,0.000197,7]
[357741717,1744416632253,-595.63987481,0.000197,7]
[357741719,1744416632264,-250.338,0.000197,7]
[357742132,1744416638170,-312.9225,0.000197,7]
[357742133,1744416638182,-418.00669538,0.000197,7]
[357742134,1744416638191,-300.0,0.00019744,2]
[357742135,1744416638200,-500.0,0.00019745,2]
[357742136,1744416638209,-500.0,0.00019745,2]
[357742137,1744416638218,-500.0,0.00019745,2]
[357742138,1744416638227,-500.0,0.00019745,2]
[357742139,1744416638237,-805.84,0.0001979,2]
[357742140,1744416638246,-2200.0,0.000198,7]
[357742141,1744416638255,-150.0,0.00019899,2]
[357742142,1744416638265,-275.70384858,0.00019899,2]
[357742143,1744416638274,-3444.5456,0.000199,2]
[357742144,1744416638282,-5200.782,0.000199,2]
[357742145,1744416638291,-36812.1484,0.000199,2]
[357742146,1744416638300,-150.3451264,0.000199,2]
[357742147,1744416638310,-1525.1617,0.000199,2]
[357742148,1744416638319,-170.21994799,0.000199,2]
[357742149,1744416638328,-5000.0,0.000199,2]
[357742150,1744416638337,-188.0,0.000199,2]
[357742151,1744416638347,-202.40670574,0.000199,2]
[357742152,1744416638356,-2700.0,0.000199,7]
[357742153,1744416638365,-2000.0,0.00019938,2]
[357742154,1744416638374,-500.0,0.00019973,2]
[357742155,1744416638383,-500.0,0.00019973,2]
[357742156,1744416638392,-170.68924343,0.00019999,2]
[357742157,1744416638401,-500.0,0.00019999,2]
[357742158,1744416638410,-500.0,0.00019999,2]
[357742159,1744416638419,-500.0,0.00019999,2]
[357742160,1744416638428,-500.0,0.00019999,2]
[357742161,1744416638437,-500.0,0.00019999,2]
[357742162,1744416638446,-500.0,0.00019999,2]
[357742163,1744416638456,-500.0,0.00019999,2]
[357742164,1744416638465,-517.90032853,0.00019999,2]
[357742165,1744416638474,-14875.92203725,0.0002,2]
[357742166,1744416638485,-521.5375,0.0002,2]
[357742167,1744416640324,-1908.34284258,0.0002,2]
[357742168,1744416640336,-1030.18483704,0.0002,2]
[357742169,1744416640348,-1633.42262764,0.0002,2]
[357742170,1744416640359,-417.23,0.0002,2]
[357742201,1744416642873,-1043.075,0.000199,2]
[357742205,1744416643346,-392.29490377,0.000199,2]
[357742208,1744416645838,-4366.27312241,0.000199,2]
[357742209,1744416645848,-43263.14084086,0.0002,2]
[357742212,1744416834870,168.66,0.00027425,30]
[357742213,1744417111383,-150.0,0.00019,2]
[357742214,1744417111405,-6.16476326,0.00019,2]
[357742215,1744417497225,150.0,0.000305,60]
[357742216,1744417532826,150.0,0.0003,30]
[357742217,1744417563222,-174.02666057,0.000196,2]
[357742223,1744417831849,-794.41733943,0.000196,2]
[357742224,1744417832047,-101.56218213,0.0001965,2]
[357742225,1744417832067,-148.43781787,0.0001965,2]
[357742226,1744417832079,-1000.0,0.0001966,2]
[357742227,1744417832088,-791.51,0.0001966,2]
[357742228,1744417832097,-2414.98,0.00019773,2]
[357742229,1744417832107,-170.065283,0.00019899,2]
[357742230,1744417832119,-262.0,0.00019899,2]
[357742231,1744417832128,-170.065283,0.00019899,2]
[357742232,1744417832138,-170.065283,0.00019899,2]
[357742234,1744417832146,-170.065283,0.00019899,2]
[357742235,1744417832155,-170.065283,0.00019899,2]
[357742237,1744417832164,-170.065283,0.000199,2]
[357742239,1744417832174,-9999.99,0.000199,2]
[357742241,1744417832183,-1687.1407224,0.000199,2]
[357742242,1744417832195,-7324.179,0.000199,2]
[357742243,1744417832206,-1544.54886588,0.000199,2]
[357742244,1744417832217,-4050.0,0.000199,2]
[357742245,1744417832229,-3031.43264769,0.000199,2]
[357742246,1744417832240,-500.0,0.000199,2]
[357742247,1744417832251,-290.23984148,0.000199,2]
[357742248,1744417832335,-469.7413087,0.000199,2]
[357742249,1744417832346,-366.84501,0.000199,2]
[357742250,1744417832399,-2583.59415557,0.000199,2]
[357742251,1744417832410,-4623.26844828,0.000199,2]
[357742252,1744417832419,-170.065283,0.000199,2]
[357742253,1744417832428,-170.065283,0.000199,2]
[357742254,1744417832437,-170.065283,0.000199,2]
[357742255,1744417832446,-214.1626,0.000199,2]
[357742256,1744417832455,-12017.0534,0.000199,2]
[357742257,1744417832464,-207.67855773,0.000199,2]
[357742258,1744417832473,-1000.0,0.000199,2]
[357742259,1744417832482,-1672.6881,0.000199,2]
[357742260,1744417832491,-1000.0,0.000199,2]
[357742261,1744417832500,-304.15,0.000199,2]
[357742262,1744417832509,-170.065283,0.000199,2]
[357742263,1744417832518,-500.98031338,0.000199,2]
[357742264,1744417832529,-1999.01968662,0.000199,2]
[357742265,1744417832539,-3867.76201746,0.000199,2]
[357742266,1744417832547,-174.20426104,0.000199,2]
[357742267,1744417832556,-1251.0599946,0.000199,2]
[357742268,1744417832566,-669.50083008,0.000199,2]
[357742269,1744417832575,-765.54,0.00019949,2]
[357742270,1744417832584,-3359.5745938,0.00019986,2]
[357742271,1744417832593,-37678.5244704,0.00019986,2]
[357742272,1744417832602,-2334.9256801,0.00019986,2]
[357742273,1744417832611,-1796.3113625,0.00019986,2]
[357742274,1744417832620,-151.0,0.00019999,2]
[357742275,1744417832629,-500.0,0.00019999,2]
[357742276,1744417832638,-500.0,0.00019999,2]
[357742277,1744417832648,-312.53022997,0.00019999,2]
[357742278,1744417832657,-500.0,0.00019999,2]
[357742279,1744417832666,-500.0,0.00019999,2]
[357742280,1744417832675,-500.0,0.00019999,2]
[357742281,1744417832684,-19794.31274343,0.0002,2]
[357742282,1744417832696,-12538.09456825,0.0002,2]
[357742283,1744417832706,-5494.55078513,0.0002,2]
[357742284,1744417832717,-562.83794471,0.0002,2]
[357742285,1744417832728,-946.24,0.0002,2]
[357742289,1744417837899,-168.04109296,0.0001956,2]
[357742290,1744417837920,-1128.41495054,0.0002,2]
[357742291,1744417837959,-2281.87364935,0.0002,2]
[357742292,1744417838017,-624.1476786,0.0002,2]
[357742293,1744417838039,-466647.28202929,0.0002,2]
[357742294,1744417838064,-459.61762194,0.0002,2]
[357742295,1744417838090,-6156.45188761,0.0002,2]
[357742296,1744417838112,-1037.35002977,0.0002,2]
[357742297,1744417838136,-4108.3547939,0.0002,2]
[357742298,1744417838158,-327.1800039,0.0002,2]
[357742299,1744417838175,-20025.22853405,0.0002,2]
[357742300,1744417838198,-218259.32205775,0.0002,2]
[357742304,1744417838217,-5873.54060081,0.0002,2]
[357742306,1744417838235,-775.44461026,0.0002,2]
[357742310,1744417838259,-9186.50881033,0.0002,2]
[357742313,1744417838277,-803.496,0.0002,2]
[357742316,1744417838296,-5547.74016914,0.0002,2]
[357742319,1744417838315,-534.70682297,0.0002,2]
[357742321,1744417838333,-364.04259866,0.0002,2]
[357742367,1744417842569,-2256.17336082,0.0002,2]
[357742368,1744417842600,-522.91188455,0.0002,2]
[357742369,1744417842611,-3164.36616967,0.0002,2]
[357742370,1744417842622,-1514.18822812,0.0002,2]
[357742371,1744417842633,-2083.06725948,0.0002,2]
[357742379,1744417843388,-1009.59177198,0.0002,2]
[357742381,1744417843400,-8313.35309977,0.0002,2]
[357742382,1744417843411,-1121.80574648,0.0002,2]
[357742387,1744417845936,-488.66773492,0.0002,2]
[357742388,1744417846049,-618.56410682,0.0002,2]
[357742389,1744417846163,-1000.0,0.0002,2]
[357742390,1744417846176,-35084.20757748,0.0002,2]
[357742393,1744417907649,157.41,0.00027425,30]
[357742395,1744418045211,-1000.0,0.00019886,2]
[357742396,1744418045237,-250.0,0.00019893,2]
[357742397,1744418045262,-2500.0,0.000199,2]
[357742398,1744418045286,-174.20426104,0.000199,2]
[357742399,1744418045311,-2578.50801164,0.000199,2]
[357742400,1744418045337,-374.748831,0.00019986,2]
[357742401,1744418045363,-300.0,0.00019999,2]
[357742402,1744418045390,-67922.53889632,0.0002,2]
[357742403,1744418115618,-250.0,0.00019,2]
[357742404,1744418908627,157.41,0.00027425,30]
[357742405,1744419032042,-608.149018,0.00019681,2]
[357742406,1744419032052,-187.41373131,0.0001978,2]
[357742407,1744419032062,-300.0,0.00019799,2]
[357742408,1744419032071,-814.14704692,0.000198,2]
[357742409,1744419032082,-595.39054192,0.000198,2]
[357742410,1744419032094,-4873.03523845,0.000198,2]
[357742411,1744419032105,-3862.89667788,0.000198,2]
[357742412,1744419032115,-250.0,0.00019849,2]
[357742413,1744419032123,-500.0,0.00019873,2]
[357742414,1744419032133,-150.0,0.00019899,2]
[357742415,1744419032142,-226.6896,0.000199,2]
[357742416,1744419032151,-189.29328165,0.000199,2]
[357742417,1744419032160,-2523.79070799,0.000199,2]
[357742418,1744419032171,-3040.74779613,0.000199,2]
[357742419,1744419032186,-588.1693003,0.000199,2]
[357742420,1744419032197,-322.9200006,0.000199,2]
[357742421,1744419032208,-2453.44955276,0.000199,2]
[357742422,1744419032219,-6356.02032901,0.000199,2]
[357742423,1744419032230,-298.695,0.000199,2]
[357742424,1744419032241,-504.42,0.000199,2]
[357742425,1744419032252,-7039.80060688,0.000199,2]
[357742426,1744419032263,-1399.93190357,0.000199,2]
[357742427,1744419032275,-700.0,0.000199,2]
[357742428,1744419032286,-4641.35985869,0.000199,2]
[357742429,1744419032297,-445.49189213,0.000199,2]
[357742430,1744419032308,-3953.48646821,0.000199,2]
[357742431,1744419032320,-5061.16061818,0.000199,2]
[357742432,1744419032332,-912.22240164,0.000199,2]
[357742434,1744419032345,-326.90872968,0.000199,2]
[357742436,1744419032356,-350.49185435,0.000199,2]
[357742438,1744419032367,-256.53412112,0.000199,2]
[357742439,1744419032383,-1885.6802487,0.000199,2]
[357742453,1744419038092,-1676.00618229,0.000199,2]
[357742454,1744419038104,-556.43543707,0.000199,2]
[357742455,1744419038113,-2500.0,0.000199,2]
[357742456,1744419038122,-597.39775385,0.000199,2]
[357742457,1744419038133,-3426.17583901,0.000199,2]
[357742458,1744419038144,-728.64512532,0.000199,2]
[357742459,1744419038206,-1475.04279826,0.000199,2]
[357742460,1744419038265,-29183.19540779,0.000199,2]
[357742461,1744419038274,-189.99018858,0.000199,2]
[357742462,1744419038283,-174.47427324,0.000199,2]
[357742463,1744419038292,-3142.87197339,0.000199,2]
[357742464,1744419038302,-1719.0053411,0.000199,2]
[357742465,1744419038311,-240.20427606,0.000199,2]
[357742466,1744419038320,-4931.0692302,0.00019986,2]
[357742467,1744419038329,-6663.1667438,0.00019986,2]
[357742468,1744419038338,-78800.2106238,0.00019986,2]
[357742469,1744419038347,-192.42048528,0.0001999,2]
[357742470,1744419038357,-174.02666057,0.00019999,2]
[357742471,1744419038366,-300.0,0.00019999,2]
[357742472,1744419038375,-69169.49771549,0.0002,2]
[357742473,1744419038387,-957.69999998,0.0002,2]
[357742474,1744419038401,-5933.55,0.0002,2]
[357742475,1744419038412,-10272.5287,0.0002,2]
[357742476,1744419038422,-14450.025,0.0002,2]
[357742477,1744419038434,-35540.7,0.0002,2]
[357742478,1744419038445,-603.465158,0.0002,2]
[357742479,1744419038456,-848.6840014,0.0002,2]
[357742480,1744419038467,-363.240668,0.0002,2]
[357742481,1744419038479,-1392.68663958,0.0002,2]
[357742482,1744419038491,-1900.86494225,0.0002,2]
[357742483,1744419038502,-580818.72175715,0.0002,2]
[357742484,1744419038511,-86358.51329676,0.0002,2]
[357742485,1744419038522,-9061.49703077,0.0002,2]
[357742486,1744419038533,-2137.3229705,0.0002,2]
[357742487,1744419038544,-860.09545517,0.0002,2]
[357742491,1744419040216,-3350.67777773,0.0002,2]
[357742492,1744419040328,-1011.06427204,0.0002,2]
[357742493,1744419040485,-18587.25043584,0.0002,2]
[357742494,1744419040497,-286732.1194701,0.0002,2]
[357742495,1744419040527,-198552.35946893,0.0002,2]
[357742496,1744419040540,-459000.59056078,0.0002,2]
[357742497,1744419040553,-44760.58128997,0.0002,2]
[357742498,1744419040567,-8523.82573361,0.0002,2]
[357742499,1744419040578,-803.24021193,0.0002,2]
[357742500,1744419040606,-65095.04666587,0.0002,2]
[357742501,1744419040618,-25669.26104217,0.0002,2]
[357742502,1744419040629,-1375.4138,0.0002,2]
[357742514,1744419043093,-2500.0,0.000199,2]
[357742515,1744419043103,-754.15567944,0.0002,2]
[357742516,1744419043117,-7370.47700134,0.0002,2]
[357742517,1744419043131,-5017.27628676,0.0002,2]
[357742518,1744419043160,-28265.58654895,0.0002,2]
[357742526,1744419046153,-6023.17866719,0.0002,2]
[357742535,1744419046841,-826.485036,0.0002,2]
[357742536,1744419208360,-659.4432,0.000197,2]
[357742537,1744419208386,-84.08659042,0.000197,2]
[357742538,1744419229870,-191.97,0.00017299,2]
[357742539,1744419229893,-108.03,0.000197,2]
[357742540,1744419237859,-300.0,0.000197,2]
[357742542,1744419488168,-150.0,0.00019614,2]
[357742543,1744419511369,-294.11629407,0.000196,2]
[357742545,1744419552972,-150.0,0.00019502,2]
[357742547,1744419723771,-152.15,0.000196,2]
[357742548,1744419798996,152.0,0.0003,38]
[357742549,1744419800822,152.0,0.00029894,37]
[357742550,1744419801116,152.0,0.00029788,36]
[357742551,1744419801421,152.0,0.00029682,35]
[357742552,1744419801716,152.0,0.00029576,34]
[357742553,1744419802067,152.0,0.0002947,33]
[357742554,1744419802359,152.0,0.00029364,32]
[357742555,1744419802651,152.0,0.00029257,31]
[357742556,1744419807825,152.0,0.00029151,30]
[357742559,1744420019253,157.41,0.00027425,30]
[357742564,1744420182411,-250.0,0.00019,2]
[357742565,1744420182439,-100.02139075,0.000193,2]
[357742570,1744420232417,-865.41,0.00019068,2]
[357742571,1744420232427,-149.97860925,0.000193,2]
[357742572,1744420232437,-363.93570593,0.000196,2]
[357742573,1744420232646,-250.0,0.00019691,2]
[357742574,1744420232655,-250.26591074,0.000197,2]
[357742575,1744420232664,-17126.7479,0.00019786,2]
[357742576,1744420232674,-230.5847,0.00019786,2]
[357742577,1744420232683,-8166.8268,0.00019886,2]
[357742578,1744420232692,-7452.0545,0.000199,2]
[357742579,1744420232701,-550.0,0.000199,2]
[357742580,1744420232710,-166.7994,0.000199,2]
[357742582,1744420232720,-189.47422901,0.000199,2]
[357742584,1744420232729,-7212.50580388,0.000199,2]
[357742586,1744420232738,-167.80003341,0.000199,2]
[357742588,1744420232747,-232.6323643,0.000199,2]
[357742590,1744420232756,-2773.64552662,0.000199,2]
[357742592,1744420232765,-307.28,0.00019985,2]
[357742594,1744420232774,-28561.7976928,0.00019986,2]
[357742596,1744420232783,-2451.946382,0.00019986,2]
[357742598,1744420232792,-2377.45122548,0.00019986,2]
[357742600,1744420232804,-3273.13330422,0.00019986,2]
[357742602,1744420232814,-9070.2797602,0.0002,2]
[357742604,1744420232825,-710.30768352,0.0002,2]
[357742607,1744420232838,-1865.45817321,0.0002,2]
[357742609,1744420232850,-12505.18626023,0.0002,2]
[357742611,1744420232865,-424.91916695,0.0002,2]
[357742637,1744420238856,-521.11362159,0.0002,2]
[357742639,1744420238873,-661.21728265,0.0002,2]
[357742641,1744420238892,-735.0921918,0.0002,2]
[357742642,1744420238916,-1603322.03194537,0.0002,2]
[357742643,1744420238931,-250.0,0.0002,2]
[357742644,1744420238946,-250.0,0.0002,2]
[357742646,1744420238961,-250.0,0.0002,2]
[357742647,1744420238976,-1687779.6210653,0.0002,2]
[357742648,1744420238995,-340033.78431041,0.0002,2]
[357742649,1744420239013,-65857.87709162,0.0002,2]
[357742650,1744420239032,-471.35831563,0.0002,2]
[357742651,1744420239129,-996.79893352,0.0002,2]
[357742652,1744420239147,-448.13726371,0.0002,2]
[357742653,1744420239164,-1070.65939047,0.0002,2]
[357742654,1744420239181,-1520.0,0.0002,2]
[357742655,1744420239199,-435.68171857,0.0002,2]
[357742656,1744420239216,-722.70133843,0.0002,2]
[357742657,1744420239233,-3476.6,0.0002,2]
[357742658,1744420240647,-287843.9223261,0.0002,2]
[357742659,1744420240659,-47786.97869324,0.0002,2]
[357742660,1744420240873,-358.00171919,0.0002,2]
[357742661,1744420240971,-0.00942468,0.0002,2]
[357742666,1744420243271,-453.0,0.0002,2]
[357742683,1744420243443,-1495.013329,0.0002,2]
[357742684,1744420243616,-763.142274,0.0002,2]
[357742697,1744420246387,-379.12940536,0.0002,2]
[357742698,1744420246398,-783.78035793,0.0002,2]
[357742699,1744420246450,-250.32485569,0.0002,2]
[357742708,1744421022435,-287.94371181,0.00019689,2]
[357742709,1744421064603,194.24,0.00027425,30]
[357742710,1744421279791,-150.0,0.00019,2]
[357742714,1744421342662,-156.70803133,0.00019,2]
[357742715,1744421342684,-31.17914973,0.00019302,2]
[357742716,1744421391528,-118.82085027,0.00019302,2]
[357742717,1744421391555,-129.07577704,0.0001931,7]
[357742718,1744421413105,-456.71776008,0.00017411,2]
[357742719,1744421418098,-250.0,0.00017411,2]
[357742726,1744421431861,-146.09223992,0.00017411,2]
[357742727,1744421431871,-19594.0,0.00019269,2]
[357742728,1744421431881,-500.0,0.00019274,2]
[357742729,1744421431891,-70.92422296,0.0001931,7]
[357742730,1744421431900,-4579.16,0.00019428,2]
[357742731,1744421431909,-199.21,0.00019592,2]
[357742733,1744421431919,-551.0,0.000196,2]
[357742734,1744421431930,-852.81,0.00019675,2]
[357742736,1744421431939,-300.0,0.00019688,2]
[357742738,1744421431948,-14058.97485445,0.00019689,2]
[357742742,1744421431972,-2733.48233093,0.00019689,2]
[357742744,1744421431984,-2937.37850542,0.00019689,2]
[357742746,1744421431995,-981.13199423,0.00019689,2]
[357742748,1744421432006,-462.42649601,0.00019689,2]
[357742750,1744421432017,-1368.93615679,0.00019689,2]
[357742752,1744421432029,-1069.72595036,0.00019689,2]
[357742754,1744421432039,-1292.00332922,0.0001974,2]
[357742756,1744421432050,-707.99667078,0.0001974,2]
[357742758,1744421432060,-1242.9857,0.000198,2]
[357742760,1744421432069,-166.02026698,0.000198,2]
[357742762,1744421432079,-801.38,0.0001985,2]
[357742764,1744421432088,-2980.32647779,0.0001989,2]
[357742768,1744421432118,-1072.78945179,0.0001989,2]
[357742770,1744421432129,-489.38511936,0.0001989,2]
[357742774,1744421432151,-304.72568319,0.0001989,2]
[357742776,1744421432163,-4958.3163497,0.0001989,2]
[357742852,1744421437653,-4691.69643619,0.0001989,2]
[357742853,1744421437771,-1344.9902802,0.0001989,2]
[357742854,1744421437783,-41525.97409226,0.0001989,2]
[357742855,1744421437792,-173.38417331,0.00019899,2]
[357742856,1744421437802,-500.0,0.00019899,2]
[357742857,1744421437811,-181.59369308,0.00019899,2]
[357742858,1744421437821,-504.75551928,0.00019899,2]
[357742859,1744421437831,-500.0,0.00019899,2]
[357742860,1744421437840,-500.0,0.00019899,2]
[357742861,1744421437850,-6444.8363,0.000199,2]
[357742862,1744421437859,-199429.6031,0.000199,2]
[357742863,1744421437869,-1716.9914,0.000199,2]
[357742864,1744421437878,-631.6895,0.000199,2]
[357742865,1744421437888,-3883.6895,0.000199,2]
[357742866,1744421437897,-185.88684928,0.000199,2]
[357742867,1744421437907,-191.21704796,0.000199,2]
[357742868,1744421437916,-1576.26772401,0.000199,2]
[357742869,1744421437926,-3148.88302504,0.000199,2]
[357742870,1744421437936,-155.08824286,0.000199,2]
[357742871,1744421437945,-500.0,0.00019973,2]
[357742872,1744421437955,-500.0,0.00019973,2]
[357742873,1744421437964,-506.86682564,0.00019973,2]
[357742874,1744421437973,-62092.3961243,0.00019986,2]
[357742875,1744421437983,-5354.536545,0.00019986,2]
[357742876,1744421437992,-4125.2788048,0.00019986,2]
[357742877,1744421438002,-400.0,0.00019988,2]
[357742878,1744421438011,-156.16476326,0.00019999,2]
[357742879,1744421438021,-15554.0637473,0.00019999,2]
[357742880,1744421438031,-502.0,0.0002,2]
[357742881,1744421438040,-244835.86754231,0.0002,2]
[357742882,1744421438050,-700.0,0.0002,2]
[357742883,1744421438060,-2177417.42611559,0.0002,2]
[357742884,1744421438069,-35410.45692423,0.0002,2]
[357742885,1744421438079,-483281.53748959,0.0002,2]
[357742886,1744421438091,-340033.78431041,0.0002,2]
[357742887,1744421438103,-393.69097478,0.0002,2]
[357742888,1744421438114,-3488.69179086,0.0002,2]
[357742889,1744421438126,-326.45,0.0002,2]
[357742890,1744421438164,-3624.54295274,0.0002,2]
[357742891,1744421438175,-394.95544537,0.0002,2]
[357742892,1744421438187,-445.60803611,0.0002,2]
[357742893,1744421438199,-282.23840945,0.0002,2]
[357742895,1744421438424,-299.22100001,0.0002,2]
[357742896,1744421438440,-2450.01510591,0.0002,2]
[357742897,1744421438452,-181304.76488071,0.0002,2]
[357742899,1744421439753,-69095.45595724,0.0002,2]
[357742900,1744421440034,-6732.39733896,0.0002,2]
[357742949,1744421442843,-74518.54201903,0.0002,2]
[357742950,1744421442917,-350.31167998,0.0002,2]
[357742951,1744421442932,-1328.31494704,0.0002,2]
[357742953,1744421442946,-10426.69971011,0.0002,2]
[357742954,1744421442960,-495.67605332,0.0002,2]
[357742955,1744421442971,-2862.32610858,0.0002,2]
[357742985,1744421445874,-5547.78799375,0.0002,2]
[357742988,1744421445885,-2807.92204793,0.0002,2]
[357743009,1744421473817,222.92934459,0.00033,120]
[357743010,1744421618095,502.317,0.0003,30]
[357743011,1744421809734,-250.0,0.00019,2]
[357743012,1744421809758,-41.75428678,0.00019657,2]
[357743013,1744421822045,-300.0,0.00019656,2]
[357743014,1744421886683,-171.06595764,0.00019656,2]
[357743015,1744421900602,-180.40007633,0.00019636,2]
[357743016,1744421942002,-162.156589,0.00019537,2]
[357743017,1744421942025,-1.973411,0.00019636,2]
[357743018,1744421951005,-333.59875068,0.00019587,2]
[357743019,1744421993794,-152.07901051,0.00019543,2]
[357743020,1744422013681,-152.079011,0.00019445,2]
[357743021,1744422055081,170.0,0.00033,120]
[357743022,1744422109952,161.0,0.00032,120]
[357743023,1744422138474,-336.17497464,0.00019379,2]
[357743024,1744422271845,-158.94,0.00019164,2]
[357743025,1744422271869,-146.25725636,0.00019197,2]
[357743026,1744422279451,-166.79937533,0.00019197,2]
[357743027,1744422320685,-300.0,0.00019197,2]
[357743028,1744422389487,181.29,0.00027425,30]
[357743029,1744422424845,-227.53752457,0.000191,2]
[357743030,1744422424867,-72.46247543,0.00019106,2]
[357743031,1744422475118,358.88639648,0.00033,120]
[357743032,1744422482363,-155.07504914,0.00019106,2]
[357743033,1744422482385,-144.92495086,0.00019112,2]
[357743034,1744422509104,-150.0,0.00018,2]
[357743035,1744422509126,-6.05154127,0.00019,2]
[357743036,1744422544216,-189.74845873,0.00019,2]
[357743037,1744422544241,-82.61257371,0.00019112,2]
[357743038,1744422544265,-27.63896756,0.00019197,2]
[357743039,1744422574238,-883.95440075,0.00019197,2]
[357743040,1744422574268,-300.0,0.00019199,2]
[357743041,1744422574298,-2929.84509185,0.000192,2]
[357743042,1744422574342,-4113.7994926,0.000192,2]
[357743043,1744422574383,-4113.7994926,0.000192,2]
[357743044,1744422574417,-2117.7558584,0.000192,2]
[357743045,1744422575125,-172.345055,0.000192,2]
[357743046,1744422582093,-431.80956865,0.00017223,2]
[357743047,1744422602827,-159.77945812,0.00017223,2]
[357743048,1744422628412,-175.93097323,0.00017223,2]
[357743049,1744422628435,-44.43787128,0.00018212,2]
[357743078,1744422632186,-205.56212872,0.00018212,2]
[357743080,1744422632195,-246.12,0.00018886,2]
[357743081,1744422632204,-200.0,0.00018906,2]
[357743083,1744422632213,-250.0,0.00018946,2]
[357743085,1744422632223,-10452.45500955,0.000192,2]
[357743087,1744422632232,-25684.51822612,0.000192,2]
[357743153,1744422633195,-150.0,0.000192,2]
[357743355,1744422637884,-431.809568,0.00019103,2]
[357743356,1744422637894,-563.98267231,0.000192,2]
[357743357,1744422637906,-2296.48951974,0.000192,2]
[357743358,1744422637916,-200.0,0.00019261,7]
[357743359,1744422637926,-164.22502536,0.00019379,2]
[357743360,1744422637936,-250.0,0.00019435,2]
[357743361,1744422637947,-443.22996015,0.00019487,2]
[357743362,1744422637980,-324.29003985,0.00019487,2]
[357743363,1744422637990,-97.92098949,0.00019543,2]
[357743364,1744422638000,-136.63013937,0.00019554,2]
[357743365,1744422638011,-863.36986063,0.00019554,2]
[357743366,1744422638021,-517.57013937,0.00019587,2]
[357743367,1744422638059,-379.75986534,0.00019587,2]
[357743368,1744422638145,-3384.08124461,0.00019587,2]
[357743369,1744422638155,-7.32651267,0.00019636,2]
[357743370,1744422638165,-21332.73571322,0.00019657,2]
[357743371,1744422638175,-2962.77,0.00019734,2]
[357743372,1744422638184,-5557.84,0.00019789,2]
[357743373,1744422638193,-1335.1049,0.000198,2]
[357743374,1744422638203,-185.26,0.00019877,2]
[357743375,1744422638213,-182.19237483,0.00019886,2]
[357743376,1744422638223,-308.9292,0.000199,2]
[357743377,1744422638232,-720.8155,0.000199,2]
[357743378,1744422638242,-512.8202,0.000199,2]
[357743379,1744422638251,-197.50715291,0.000199,2]
[357743380,1744422638260,-182.19237482,0.000199,2]
[357743381,1744422638269,-156.23573849,0.000199,2]
[357743382,1744422638279,-424.43070071,0.000199,2]
[357743383,1744422638288,-20083.4902328,0.0001997,2]
[357743384,1744422638297,-205.0,0.00019973,2]
[357743385,1744422638309,-710.6064944,0.00019986,2]
[357743386,1744422638319,-50316.8023847,0.00019986,2]
[357743387,1744422638329,-2374.8521555,0.00019986,2]
[357743388,1744422638339,-1209.2774971,0.00019986,2]
[357743389,1744422638349,-418.4213721,0.00019986,2]
[357743391,1744422638358,-207.4,0.00019988,2]
[357743393,1744422638368,-500.0,0.00019999,2]
[357743395,1744422638377,-500.0,0.00019999,2]
[357743397,1744422638387,-403.3288635,0.00019999,2]